{"text_format":"1","workbook":"xlsx","n_sheets":2,"sheets":["Formato Participación","Bienvenido"],"not_rendered":{"charts":0,"images":2,"macros":1,"external_links":0,"defined_names":0,"comments":0,"pivot_tables":0},"unopened":[],"bounds":{"document_bytes":16777216,"sheet_cells":100000,"rows_first":2000,"rows_last":500,"rows_between":2000,"halvings":0,"cell_chars":16384,"cell_head_chars":4096},"cells_cut":0,"cells_raw":0,"read":"whole","date_system":"1900"}

{"sheet":"Formato Participación","index":0,"n_rows":80,"n_cols":32,"rows_kept":80,"cut":false,"hidden":false,"merged":[[17,1,17,9],[17,10,17,17],[62,1,62,10],[53,11,59,19],[3,17,3,19],[7,1,7,19],[12,1,12,19],[13,17,13,19],[21,1,21,14],[18,1,18,4],[18,11,18,12],[20,1,20,4],[19,1,19,6],[19,7,19,10],[19,11,19,14],[17,18,17,19],[14,7,15,10],[14,11,15,16],[23,13,23,14],[26,13,26,19],[79,1,80,19],[61,11,61,19],[51,1,51,19],[75,1,75,19],[76,1,76,19],[77,1,77,19],[67,11,67,19],[64,11,64,19],[62,11,62,19],[66,11,66,19],[65,1,65,10],[68,1,68,2],[68,4,68,10],[63,11,63,19],[53,1,57,10],[61,1,61,8],[33,1,33,8],[33,9,33,14],[33,15,33,19],[45,1,46,6],[45,7,46,10],[45,11,46,16],[48,1,48,10],[50,1,50,6],[50,7,50,10],[37,16,37,19],[39,13,39,15],[42,1,42,3],[43,1,43,19],[44,17,44,19],[69,1,74,19],[19,15,19,19],[39,1,39,7],[39,8,39,12],[41,7,41,12],[31,1,31,19],[29,1,29,19],[65,11,65,19],[21,15,21,19],[37,1,37,15],[35,1,35,19],[41,13,41,19],[39,16,39,19],[41,1,41,6],[23,15,23,19],[22,6,22,7],[50,11,50,14],[50,15,50,19],[48,11,48,19],[14,1,15,6],[1,1,1,19],[18,15,18,16],[22,1,22,4],[30,1,30,3],[25,1,25,6],[25,7,25,12],[25,13,25,19],[26,1,27,12],[27,13,28,19],[32,1,32,4],[23,1,23,7],[23,8,23,12]]}
[]
[null,"Formato de Participación en Subasta de Vehículos Reposeídos"]
[]
[null,null,null,null,null,null,null,null,null,null,null,null,null,null,null,null,null,"Fecha de Registro",null,null,null,null,"PF/PM","Actúa","M/F",null,null,null,null,null,"FALSE COUNT","END"]
[null,null,null,null,null,null,null,null,null,null,null,null,null,null,null,null,null,"Día","Mes","Año",null,{"$f":"IF(OR(R6=\"\",S6=\"\",T6=\"\"),FALSE,TRUE)","v":false},0,0,0,0,0,0,0,0,{"$f":"COUNTIF($V:$V,FALSE)","v":4},{"$f":"IF(AE5=0,\"DONE\",\"\")","v":""}]
[null,null,null,null,null,null,null,null,null,null,null,null,null,null,null,null,null,null,null,null,null,null,null,null,0,0,null,null,0]
[null,"Instrucciones: Favor de llenar el formato con letra molde"]
[null,"Información del Comprador"]
[]
[]
[null,null,{"$f":"IF(W5=0,\"*\",\"\")","v":"*"},"Persona Física",null,null,null,"Persona Moral",null,null,null,null,{"$f":"IF(X5=0,\"*\",\"\")","v":"*"},"Por cuenta propia",null,null,"Por cuenta de un tercero",null,null,null,null,{"$f":"IF(OR(W5=0,X5=0),FALSE,TRUE)","v":false}]
[]
[null,"Espacio exclusivo para PERSONAS FÍSICAS ",null,null,null,null,null,null,null,null,null,null,null,null,null,null,null,null,null,null,null,{"$f":"IF(AND(W5=1,OR(F14=\"*\",K14=\"*\",P14=\"*\",R17=\"*\",R19=\"*\",N19=\"*\",I19=\"*\",F19=\"*\",F21=\"*\",F23=\"*\",D25=\"*\",J23=\"*\",J25=\"*\",O23=\"*\",P25=\"*\",Q23=\"*\",Q21=\"*\",R16=\"\",S16=\"\",T16=\"\",I29=\"\",S27=\"\",G17=\"*\",Q17=\"*\")),FALSE,TRUE)","v":true}]
[null,"Nombre(s) Completo(s) (Sin abreviaciones)",null,null,null,{"$f":"IF(AND(W5=1,B15=\"\"),\"*\",\"\")","v":""},null,"Apellido Paterno (Sin abreviaciones)",null,null,{"$f":"IF(AND(W5=1,H15=\"\"),\"*\",\"\")","v":""},"Apellido Materno (Sin abreviaciones)",null,null,null,{"$f":"IF(AND(W5=1,L15=\"\"),\"*\",\"\")","v":""},null,"Fecha de Nacimiento "]
[null,null,null,null,null,null,null,null,null,null,null,null,null,null,null,null,null,"Día","Mes","Año"]
[]
[null,"CURP (en caso de tenerlo) o colocar \"No dispongo de ella\"",null,null,null,null,{"$f":"IF(AND(W5=1,B18=\"\"),\"*\",\"\")","v":""},null,null,null,"No. De Serie de la Firma Electrónica Avanzada o colocar \"No cuento con ella\"",null,null,null,null,null,{"$f":"IF(AND(W5=1,K18=\"\"),\"*\",\"\")","v":""},{"$f":"IF(AND(W5=1,Y5=0),\"*\",\"\")","v":""}]
[]
[null,"Entidad Federativa de Nacimiento:",null,null,null,{"$f":"IF(AND(W5=1,B20=\"\"),\"*\",\"\")","v":""},null,"Nacionalidad: ",{"$f":"IF(AND(W5=1,H20=\"\"),\"*\",\"\")","v":""},null,null,"País de Nacimiento:",null,{"$f":"IF(AND(W5=1,L20=\"\"),\"*\",\"\")","v":""},null,"RFC (Con homoclave):",null,{"$f":"IF(AND(W5=1,P20=\"\"),\"*\",\"\")","v":""}]
[]
[null,"Dirección (Calle, numero exterior e interior):",null,null,null,{"$f":"IF(AND(W5=1,B22=\"\"),\"*\",\"\")","v":""},null,null,null,null,null,null,null,null,null,"Colonia:",{"$f":"IF(AND(W5=1,P22=\"\"),\"*\",\"\")","v":""}]
[]
[null,"Ciudad, Delegación, Municipio o Población:",null,null,null,{"$f":"IF(AND(W5=1,B24=\"\"),\"*\",\"\")","v":""},null,null,"Estado:",{"$f":"IF(AND(W5=1,I24=\"\"),\"*\",\"\")","v":""},null,null,null,"País:",{"$f":"IF(AND(W5=1,N24=\"\"),\"*\",\"\")","v":""},"Código Postal:",{"$f":"IF(AND(W5=1,P24=\"\"),\"*\",\"\")","v":""}]
[]
[null,"Teléfono de Contacto:",null,{"$f":"IF(AND(W5=1,B26:G26=\"\"),\"*\",\"\")","v":""},null,null,null,"Ocupación o Actividad:",null,{"$f":"IF(AND(W5=1,H26:M26=\"\"),\"*\",\"\")","v":""},null,null,null,"Correo Electrónico:",null,{"$f":"IF(AND(W5=1,N26=\"\"),\"*\",\"\")","v":""}]
[]
[null,"En caso de que el Comprador de Subastas tenga su lugar de residencia en el extranjero y, a la vez, cuente con domicilio en territorio nacional en donde pueda recibir correspondencia, es indispensable señalar a continuación dicho domicilio (Calle, número exterior, número interior en su caso, colonia, delegación o municipio, ciudad o población, entidad federativa o estado, código postal):",null,null,null,null,null,null,null,null,null,null,null,"Domicilio Completo o colocar \"No Aplica\" (en su caso):"]
[]
[null,null,null,null,null,"No Aplica",null,"Si Aplica",{"$f":"IF(AND($W$5=1,$AC$6=0),\"*\",\"\")","v":""}]
[null,"Espacio exclusivo para PERSONAS MORALES",null,null,null,null,null,null,null,null,null,null,null,null,null,null,null,null,null,null,null,{"$f":"IF(AND(W5=2,OR(E31=\"*\",F33=\"*\",K33=\"*\",R33=\"*\",R37=\"*\",F37=\"*\",F39=\"*\",J39=\"*\",O39=\"*\",P41=\"*\",R39=\"*\",J41=\"*\",D41=\"*\",I35=\"*\")),FALSE,TRUE)","v":true}]
[null,"Denominación o razón social:",null,null,{"$f":"IF(AND(W5=2,B32=\"\"),\"*\",\"\")","v":""}]
[]
[null,"Giro mercantil, actividad u objeto social:",null,null,null,{"$f":"IF(AND(W5=2,B34=\"\"),\"*\",\"\")","v":""},null,null,null,"Nacionalidad: ",{"$f":"IF(AND(W5=2,J34=\"\"),\"*\",\"\")","v":""},null,null,null,null,"RFC (Con homoclave):",null,{"$f":"IF(AND(W5=2,P34=\"\"),\"*\",\"\")","v":""}]
[]
[null,"No. De Serie de la Firma Electrónica Avanzada o colocar \"No cuento con ella\"",null,null,null,null,null,null,{"$f":"IF(AND(W5=2,B36=\"\"),\"*\",\"\")","v":""}]
[]
[null,"Dirección (Calle, numero exterior e interior):",null,null,null,{"$f":"IF(AND(W5=2,B38=\"\"),\"*\",\"\")","v":""},null,null,null,null,null,null,null,null,null,null,"Colonia:",{"$f":"IF(AND(W5=2,Q38=\"\"),\"*\",\"\")","v":""}]
[]
[null,"Ciudad, Delegación, Municipio o Población:",null,null,null,{"$f":"IF(AND(W5=2,B40=\"\"),\"*\",\"\")","v":""},null,null,"Estado:",{"$f":"IF(AND(W5=2,I40=\"\"),\"*\",\"\")","v":""},null,null,null,"País:",{"$f":"IF(AND(W5=2,N40=\"\"),\"*\",\"\")","v":""},null,"Código Postal:",{"$f":"IF(AND(W5=2,Q40=\"\"),\"*\",\"\")","v":""}]
[]
[null,"Teléfono de Contacto:",null,{"$f":"IF(AND(W5=2,B42=\"\"),\"*\",\"\")","v":""},null,null,null,"Ocupación o Actividad:",null,{"$f":"IF(AND(W5=2,H42=\"\"),\"*\",\"\")","v":""},null,null,null,"Correo Electrónico:",null,{"$f":"IF(AND(W5=2,N42=\"\"),\"*\",\"\")","v":""}]
[]
[null,"¿Representante / Apoderado Legal?",null,null,{"$f":"IF(AB5=0,\"*\",\"\")","v":"*"},"Si",null,"No",null,null,null,null,null,null,null,null,null,null,null,null,null,{"$f":"IF(AB5=0,FALSE,TRUE)","v":false}]
[null,"Datos del Representante Legal de Persona Moral / Apoderado Legal Persona Física",null,null,null,null,null,null,null,null,null,null,null,null,null,null,null,null,null,null,null,{"$f":"IF(AND(AB5=1,OR(F45=\"*\",K45=\"*\",P45=\"*\",R47=\"\",S47=\"\",T47=\"*\")),FALSE,TRUE)","v":true}]
[null,"Nombre(s) Completo(s) (Sin abreviaciones)",null,null,null,{"$f":"IF(AND(AB5=1,B46=\"\"),\"*\",\"\")","v":""},null,"Apellido Paterno (Sin abreviaciones)",null,null,{"$f":"IF(AND(AB5=1,H46=\"\"),\"*\",\"\")","v":""},"Apellido Materno (Sin abreviaciones)",null,null,null,{"$f":"IF(AND(AB5=1,L46=\"\"),\"*\",\"\")","v":""},null,"Fecha de Nacimiento "]
[null,null,null,null,null,null,null,null,null,null,null,null,null,null,null,null,null,"Día","Mes","Año"]
[]
[null,"Dirección (Calle, numero exterior e interior):",null,null,null,null,null,null,null,null,null,"Colonia",null,null,null,null,null,null,null,null,null,{"$f":"IF(OR(H59=\"*\",R61=\"*\",I67=\"*\",D69=\"*\"),FALSE,TRUE)","v":false}]
[]
[null,"Ciudad, Delegación, Municipio o Población:",null,null,null,null,null,"Estado",null,null,null,"País",null,null,null,"Código Postal"]
[]
[null,"Entrevista Personal"]
[]
[null,"1.- ¿Usted en lo personal o como Representante Legal de la sociedad o los accionistas de la misma desempeña(n) o ha(n) desempeñado en el año previo al presente formato funciones públicas o actividades políticas DESTACADAS en un país extranjero o en territorio nacional, considerando entre otros, a los jefes de estado o de gobierno, líderes políticos, funcionarios gubernamentales, judiciales o militares de alta jerarquía, altos ejecutivos de empresas estatales o funcionarios o miembros importantes de partidos políticos y organizaciones internacionales?",null,null,null,null,null,null,null,null,null,"3.- ¿Usted en lo personal o como Representante Legal de la sociedad o los accionistas de la misma tiene(n)  algún familiar por consanguinidad o afinidad hasta segundo grado: Hijo(a), padre, madre, abuelo(a), nieto(a), hermano(a), cónyuge, suegro(a), cuñado(a), abuelo(a) de cónyuge, yerno o nuera, que desempeñe o haya desempeñado en el último año funciones públicas o actividades políticas DESTACADAS en un páis extranjero o en territorio nacional, entendiéndose de forma enunciativa más no limitativa, las funciones o actividades enlistadas en la pregunta 1 (uno)?"]
[]
[]
[]
[]
[null,null,null,null,null,null,null,{"$f":"IF(Z5=0,\"*\",\"\")","v":"*"}]
[null,null,null,null,null,"NO",null,"SI"]
[null,null,null,null,null,null,null,null,null,null,null,null,null,null,"                   NO",null,"        SI",{"$f":"IF(AA5=0,\"*\",\"\")","v":"*"}]
[null,"Detalle cargo y fecha desde la que lo desempeño o lo dejo de desempeñar:",null,null,null,null,null,null,null,{"$f":"IF($Z$5=2,\"*\",\"\")","v":""},null,"Detalle cargo y fecha desde la que lo desempeño o lo dejo de desempeñar:"]
[]
[null,null,null,null,null,null,null,null,null,null,null,"Nombre y apellidos completos del familiar (sin abreviación):"]
[]
[null,"2.- En caso de desempeñar alguna de las funciones o actividades enlistadas en la pregunta anterior y ser extranjero, favor de indicar las razones por las que ha elegido celebrar un contrato u operación en territorio nacional:",null,null,null,null,null,null,null,null,null,"Relación (Parentesco):"]
[null,null,null,null,null,"No Aplica",null,"Si Aplica",{"$f":"IF(Z5=1,\"\",IF(AC5=0,\"*\",\"\"))","v":"*"}]
[]
[null,"Razón:",null,{"$f":"IF($AC$5=2,\"*\",\"\")","v":""}]
[null,"Declaro que la información aquí mencionada es completa y exacta. Asumo total responsabilidad de la veracidad de la misma y me comprometo con GM Financial a proporcionar toda la información que me sea requerida para la participación en subastas de vehículos. Asimismo declaro en este acto que (i) los recursos económicos con los que se llevan a cabo la(s) transacción(es) de compraventa de vehículos automotores  por medio de subasta son de procedencia lícita; (ii) la información personal de terceros que en su caso se haga de mi conocimiento por virtud de la compra de unidades pertenece a un tercero y será cuidada por mí o mi representada de acuerdo a los lineamientos y disposiciones establecidas por la Legislación de Protección de Datos vigente en los Estados Unidos Mexicanos, obligandome en este acto a salvaguardarla y velar por su cumplimiento. Manifiesto que previo al llenado del presente formato, GM Financial S.A. de C.V.  SOFOM E.R. puso a mi disposición su Aviso de Privacidad para participantes de Subastas mismo que se encuentra disponible en el anverso de este formato."]
[]
[]
[]
[]
[]
[null,"___________________________________________________________"]
[null,"Nombre y Firma del Comprador o de su Representante / Apoderado Legal"]
[null,"(La Firma autógrafa debe corresponder con su identificación oficial)"]
[]
[null,"GM Financial de México S.A. de C.V. SOFOM, E.R.  Ave. Eugenio Garza Lagüera N° 933, Planta Baja, Colonia Valle Oriente, San Pedro Garza García, Nuevo León, C.P. 66278 Tel. 83999628 www.gmfinancial.mx / mxdealersource@gmfinancial.com"]

{"sheet":"Bienvenido","index":1,"n_rows":0,"n_cols":0,"rows_kept":0,"cut":false,"hidden":true,"merged":[]}